fUSD/lending_fUSD_20240125
["ID","MTS","AMOUNT","RATE_DAILY","PERIOD"]
[312761700,1706200261338,-500.0,0.00054794,120]
[312761701,1706200261350,-515.02968237,0.00054794,120]
[312761702,1706200261360,-500.0,0.00054794,120]
[312761703,1706200261372,-500.0,0.00054794,120]
[312761704,1706200261382,-500.0,0.00054794,120]
[312761705,1706200261393,-508.85833962,0.00054794,120]
[312761706,1706200261404,-500.0,0.00054794,120]
[312761707,1706200261415,-500.0,0.00054794,120]
[312761708,1706200261424,-500.0,0.00054794,120]
[312761709,1706200261434,-500.0,0.00054794,120]
[312761710,1706200261447,-500.0,0.00054794,120]
[312761711,1706200261457,-504.18656238,0.00054794,120]
[312761712,1706200261468,-151.0,0.00054794,120]
[312761713,1706200261477,-500.0,0.00054794,120]
[312761714,1706200261487,-500.0,0.00054794,120]
[312761715,1706200261497,-500.0,0.00054794,120]
[312761716,1706200261508,-500.0,0.00054794,120]
[312761717,1706200261518,-500.0,0.00054794,120]
[312761718,1706200261528,-500.0,0.00054794,120]
[312761719,1706200261538,-504.30435733,0.00054794,120]
[312761720,1706200261547,-500.0,0.00054794,120]
[312761721,1706200261557,-933.69,0.00054794,120]
[312761722,1706200261567,-500.0,0.00054794,120]
[312761723,1706200261577,-472.43431349,0.00054794,120]
[312761724,1706200261587,-500.0,0.00054794,120]
[312761725,1706200261597,-510.67212917,0.00054794,120]
[312761726,1706200261607,-500.0,0.00054794,120]
[312761727,1706200261617,-500.0,0.00054794,120]
[312761728,1706200261627,-578.21,0.00054794,120]
[312761729,1706200261638,-500.0,0.00054794,120]
[312761730,1706200261649,-500.0,0.00054794,120]
[312761731,1706200261660,-500.0,0.00054794,120]
[312761732,1706200261670,-499.94082865,0.00054794,120]
[312761733,1706200261682,-507.97803685,0.00054794,120]
[312761734,1706200261694,-500.0,0.00054794,120]
[312761735,1706200261706,-500.0,0.00054794,120]
[312761736,1706200261716,-500.0,0.00054794,120]
[312761737,1706200261727,-500.0,0.00054794,120]
[312761738,1706200261738,-500.0,0.00054794,120]
[312761739,1706200261748,-502.69,0.00054794,120]
[312761740,1706200261758,-798.09,0.00054794,120]
[312761741,1706200261768,-1891.7,0.00054794,5]
[312761742,1706200261779,-504.35725155,0.00054794,120]
[312761743,1706200261789,-500.0,0.00054794,120]
[312761744,1706200261799,-500.0,0.00054794,120]
[312761745,1706200261809,-500.0,0.00054794,120]
[312761746,1706200261820,-1041.6,0.00054794,120]
[312761747,1706200261829,-500.0,0.00054794,120]
[312761748,1706200261838,-500.0,0.00054794,120]
[312761749,1706200261847,-500.0,0.00054794,120]
[312761750,1706200261857,-500.0,0.00054794,120]
[312761751,1706200261867,-500.0,0.00054794,120]
[312761752,1706200261876,-500.0,0.00054794,120]
[312761753,1706200261886,-500.0,0.00054794,120]
[312761754,1706200261895,-500.0,0.00054794,120]
[312761755,1706200261904,-500.0,0.00054794,120]
[312761756,1706200261914,-500.0,0.00054794,120]
[312761757,1706200261923,-151.0,0.00054794,120]
[312761758,1706200261933,-507.90642967,0.00054794,120]
[312761759,1706200261943,-505.32638858,0.00054794,120]
[312761760,1706200261953,-811.22,0.00054794,120]
[312761761,1706200261962,-151.0,0.00054794,120]
[312761762,1706200261971,-500.0,0.00054794,120]
[312761763,1706200261981,-503.66075715,0.00054794,120]
[312761764,1706200261991,-500.0,0.00054794,120]
[312761765,1706200262000,-500.0,0.00054794,120]
[312761766,1706200262010,-500.0,0.00054794,120]
[312761767,1706200262019,-507.51512079,0.00054794,120]
[312761768,1706200262029,-500.0,0.00054794,120]
[312761769,1706200262039,-500.0,0.00054794,120]
[312761770,1706200262051,-537.52,0.00054794,120]
[312761771,1706200262060,-519.01,0.00054794,120]
[312761772,1706200262070,-151.0,0.00054794,120]
[312761773,1706200262079,-500.0,0.00054794,120]
[312761774,1706200262090,-500.0,0.00054794,120]
[312761775,1706200262099,-151.0,0.00054794,120]
[312761776,1706200262108,-151.0,0.00054794,120]
[312761777,1706200262118,-500.0,0.00054794,120]
[312761778,1706200262128,-228.775545,0.00054794,120]
[312761779,1706200262138,-500.0,0.00054794,120]
[312761780,1706200262147,-500.0,0.00054794,120]
[312761781,1706200262157,-1000.0,0.00054794,7]
[312761782,1706200262166,-500.0,0.00054794,120]
[312761783,1706200262176,-500.0,0.00054794,120]
[312761784,1706200262186,-500.0,0.00054794,120]
[312761785,1706200262198,-689.17,0.00054794,120]
[312761786,1706200262207,-511.24771854,0.00054794,120]
[312761787,1706200262216,-524.36605223,0.00054794,30]
[312761788,1706200262226,-166.413649,0.00054794,120]
[312761789,1706200262235,-500.0,0.00054794,120]
[312761790,1706200262244,-508.07921271,0.00054794,120]
[312761791,1706200262254,-166.413649,0.00054794,120]
[312761792,1706200262264,-5000.0,0.00054794,14]
[312761793,1706200262274,-500.0,0.00054794,120]
[312761794,1706200262284,-638.39367371,0.00054794,120]
[312761795,1706200262294,-500.0,0.00054794,120]
[312761796,1706200262304,-500.0,0.00054794,120]
[312761797,1706200262313,-505.87441884,0.00054794,120]
[312761798,1706200262323,-500.0,0.00054794,120]
[312761799,1706200262447,-500.0,0.00054794,120]
[312761800,1706200262459,-500.0,0.00054794,120]
[312761801,1706200262469,-500.0,0.00054794,120]
[312761802,1706200262478,-500.0,0.00054794,120]
[312761803,1706200262487,-505.11931575,0.00054794,120]
[312761804,1706200262496,-509.41819956,0.00054794,120]
[312761805,1706200262506,-505.70538683,0.00054794,120]
[312761806,1706200262515,-500.0,0.00054794,120]
[312761807,1706200262525,-500.0,0.00054794,120]
[312761808,1706200262535,-500.0,0.00054794,120]
[312761809,1706200262544,-500.0,0.00054794,120]
[312761810,1706200262554,-500.0,0.00054794,120]
[312761811,1706200262564,-512.45821689,0.00054794,120]
[312761812,1706200262573,-500.0,0.00054794,120]
[312761813,1706200262583,-505.28377147,0.00054794,120]
[312761814,1706200262593,-500.0,0.00054794,120]
[312761815,1706200262603,-500.0,0.00054794,120]
[312761816,1706200262612,-500.0,0.00054794,120]
[312761817,1706200262621,-507.6349475,0.00054794,120]
[312761818,1706200262631,-500.0,0.00054794,120]
[312761819,1706200262641,-500.0,0.00054794,120]
[312761820,1706200262650,-500.0,0.00054794,120]
[312761821,1706200262659,-500.0,0.00054794,120]
[312761822,1706200262669,-500.0,0.00054794,120]
[312761823,1706200262678,-500.0,0.00054794,120]
[312761824,1706200262687,-506.32374571,0.00054794,120]
[312761825,1706200262700,-500.0,0.00054794,120]
[312761826,1706200262709,-500.0,0.00054794,120]
[312761827,1706200262718,-497.07973777,0.00054794,120]
[312761828,1706200262727,-500.0,0.00054794,120]
[312761829,1706200262736,-500.0,0.00054794,120]
[312761830,1706200262745,-500.0,0.00054794,120]
[312761831,1706200262754,-500.0,0.00054794,120]
[312761832,1706200262763,-511.46695781,0.00054794,120]
[312761833,1706200262773,-500.0,0.00054794,120]
[312761834,1706200262782,-151.0,0.00054794,120]
[312761835,1706200262791,-500.0,0.00054794,120]
[312761836,1706200262800,-500.0,0.00054794,120]
[312761837,1706200262809,-500.0,0.00054794,120]
[312761838,1706200262818,-504.16053617,0.00054794,120]
[312761839,1706200262828,-500.0,0.00054794,120]
[312761840,1706200262837,-151.0,0.00054794,2]
[312761841,1706200262846,-500.0,0.00054794,120]
[312761842,1706200262856,-500.0,0.00054794,2]
[312761843,1706200262865,-500.0,0.00054794,120]
[312761844,1706200262875,-813.72,0.00054794,120]
[312761845,1706200262885,-500.0,0.00054794,120]
[312761846,1706200262895,-688.92,0.00054794,120]
[312761847,1706200262905,-503.87041367,0.00054794,120]
[312761848,1706200262915,-500.0,0.00054794,120]
[312761849,1706200262925,-500.0,0.00054794,120]
[312761850,1706200262935,-500.0,0.00054794,120]
[312761851,1706200262948,-500.0,0.00054794,120]
[312761852,1706200262957,-852.393969,0.00054794,120]
[312761853,1706200262967,-525.41780926,0.00054794,120]
[312761854,1706200262977,-500.0,0.00054794,120]
[312761855,1706200262986,-516.07427586,0.00054794,120]
[312761856,1706200262995,-852.393969,0.00054794,120]
[312761857,1706200263005,-500.0,0.00054794,120]
[312761858,1706200263014,-500.0,0.00054794,120]
[312761859,1706200263023,-500.0,0.00054794,120]
[312761860,1706200263033,-508.46332892,0.00054794,120]
[312761861,1706200263044,-500.0,0.00054794,120]
[312761862,1706200263054,-509.68412949,0.00054794,120]
[312761863,1706200263063,-659.44,0.00054794,15]
[312761864,1706200263073,-500.0,0.00054794,120]
[312761865,1706200263082,-510.73892495,0.00054794,120]
[312761866,1706200263091,-500.0,0.00054794,120]
[312761867,1706200263101,-500.0,0.00054794,120]
[312761868,1706200263110,-512.28574884,0.00054794,120]
[312761869,1706200263122,-500.0,0.00054794,10]
[312761870,1706200263132,-500.0,0.00054794,120]
[312761871,1706200263142,-500.0,0.00054794,120]
[312761872,1706200263151,-500.0,0.00054794,120]
[312761873,1706200263161,-500.0,0.00054794,120]
[312761874,1706200263170,-500.0,0.00054794,120]
[312761875,1706200263179,-500.0,0.00054794,120]
[312761876,1706200263188,-151.0,0.00054794,120]
[312761877,1706200263198,-500.0,0.00054794,120]
[312761878,1706200263207,-500.0,0.00054794,120]
[312761879,1706200263217,-500.0,0.00054794,120]
[312761880,1706200263226,-515.48601298,0.00054794,120]
[312761881,1706200263236,-151.0,0.00054794,120]
[312761882,1706200263245,-500.0,0.00054794,120]
[312761883,1706200263255,-500.0,0.00054794,120]
[312761884,1706200263264,-184.49882217,0.00054794,120]
[312761885,1706200263274,-500.0,0.00054794,120]
[312761886,1706200263283,-500.0,0.00054794,120]
[312761887,1706200263292,-479.33058491,0.00054794,120]
[312761888,1706200263302,-500.0,0.00054794,120]
[312761889,1706200263311,-500.0,0.00054794,120]
[312761890,1706200263320,-500.0,0.00054794,120]
[312761891,1706200263329,-500.0,0.00054794,120]
[312761892,1706200263338,-605.29,0.00054794,120]
[312761893,1706200263348,-500.0,0.00054794,120]
[312761894,1706200263357,-500.0,0.00054794,120]
[312761895,1706200263366,-500.0,0.00054794,120]
[312761896,1706200263376,-500.0,0.00054794,120]
[312761897,1706200263385,-500.0,0.00054794,120]
[312761898,1706200263394,-500.0,0.00054794,120]
[312761899,1706200263403,-512.78611375,0.00054794,120]
[312761900,1706200263412,-500.0,0.00054794,120]
[312761901,1706200263422,-500.0,0.00054794,120]
[312761902,1706200263432,-500.0,0.00054794,120]
[312761903,1706200263444,-500.0,0.00054794,120]
[312761904,1706200263453,-500.0,0.00054794,120]
[312761905,1706200263463,-500.0,0.00054794,120]
[312761906,1706200263472,-500.0,0.00054794,120]
[312761907,1706200263481,-500.0,0.00054794,120]
[312761908,1706200263490,-500.0,0.00054794,120]
[312761909,1706200263499,-500.0,0.00054794,120]
[312761910,1706200263508,-825.68,0.00054794,120]
[312761911,1706200263517,-500.0,0.00054794,120]
[312761912,1706200263526,-801.81,0.00054794,120]
[312761913,1706200263535,-519.27577222,0.00054794,120]
[312761914,1706200263545,-500.0,0.00054794,120]
[312761915,1706200263554,-500.0,0.00054794,120]
[312761916,1706200263562,-500.0,0.00054794,120]
[312761917,1706200263572,-500.0,0.00054794,120]
[312761918,1706200263582,-500.0,0.00054794,120]
[312761919,1706200263591,-500.0,0.00054794,120]
[312761920,1706200263601,-511.49428272,0.00054794,120]
[312761921,1706200263610,-500.0,0.00054794,120]
[312761922,1706200263619,-500.0,0.00054794,120]
[312761923,1706200263628,-506.75775727,0.00054794,120]
[312761924,1706200263638,-500.0,0.00054794,120]
[312761925,1706200263647,-500.0,0.00054794,120]
[312761926,1706200263656,-500.0,0.00054794,120]
[312761927,1706200263665,-500.0,0.00054794,120]
[312761928,1706200263674,-500.0,0.00054794,120]
[312761929,1706200263684,-1000.0,0.00054794,120]
[312761930,1706200263694,-500.0,0.00054794,120]
[312761931,1706200263703,-500.0,0.00054794,120]
[312761932,1706200263712,-500.0,0.00054794,120]
[312761933,1706200263722,-500.0,0.00054794,120]
[312761934,1706200263731,-500.0,0.00054794,120]
[312761935,1706200263740,-500.0,0.00054794,120]
[312761936,1706200263749,-500.0,0.00054794,120]
[312761937,1706200263760,-500.0,0.00054794,120]
[312761938,1706200263773,-500.0,0.00054794,120]
[312761939,1706200263783,-539.57177558,0.00054794,120]
[312761940,1706200263793,-1331.72359,0.00054794,120]
[312761941,1706200263802,-500.0,0.00054794,120]
[312761942,1706200263811,-500.0,0.00054794,120]
[312761943,1706200263820,-500.0,0.00054794,120]
[312761944,1706200263829,-151.0,0.00054794,120]
[312761945,1706200263838,-500.0,0.00054794,120]
[312761946,1706200263847,-500.0,0.00054794,120]
[312761947,1706200263857,-1331.72359,0.00054794,120]
[312761948,1706200263865,-500.0,0.00054794,120]
[312761949,1706200263874,-500.0,0.00054794,120]
[312761950,1706200263883,-500.0,0.00054794,120]
[312761951,1706200263892,-321.20789206,0.00054794,120]
[312761952,1706200263901,-500.0,0.00054794,120]
[312761953,1706200263911,-500.0,0.00054794,120]
[312761954,1706200263920,-500.0,0.00054794,120]
[312761955,1706200263929,-500.0,0.00054794,120]
[312761956,1706200263939,-1686.42,0.00054794,120]
[312761957,1706200263949,-500.0,0.00054794,120]
[312761958,1706200263958,-500.0,0.00054794,120]
[312761959,1706200263968,-500.0,0.00054794,120]
[312761960,1706200263977,-500.0,0.00054794,120]
[312761961,1706200263986,-500.0,0.00054794,120]
[312761962,1706200263996,-532.37,0.00054794,120]
[312761963,1706200264005,-500.0,0.00054794,120]
[312761964,1706200264014,-500.0,0.00054794,120]
[312761965,1706200264023,-161.78604016,0.00054794,120]
[312761966,1706200264032,-500.0,0.00054794,120]
[312761967,1706200264041,-500.0,0.00054794,120]
[312761968,1706200264053,-500.0,0.00054794,120]
[312761969,1706200264062,-515.63252858,0.00054794,120]
[312761970,1706200264071,-500.0,0.00054794,120]
[312761971,1706200264183,-502.93900097,0.00054794,120]
[312761972,1706200264192,-500.0,0.00054794,120]
[312761973,1706200264202,-500.0,0.00054794,2]
[312761974,1706200264211,-500.0,0.00054794,120]
[312761975,1706200264220,-511.35633208,0.00054794,120]
[312761976,1706200264229,-716.14,0.00054794,120]
[312761977,1706200264238,-500.0,0.00054794,120]
[312761978,1706200264247,-500.0,0.00054794,120]
[312761979,1706200264256,-518.79239465,0.00054794,120]
[312761980,1706200264265,-509.55,0.00054794,120]
[312761981,1706200264274,-500.0,0.00054794,120]
[312761982,1706200264283,-428.42408604,0.00054794,120]
[312761983,1706200264293,-505.05,0.00054794,120]
[312761984,1706200264302,-500.0,0.00054794,120]
[312761985,1706200264311,-508.48414561,0.00054794,120]
[312761986,1706200264320,-500.0,0.00054794,120]
[312761987,1706200264329,-501.71734893,0.00054794,120]
[312761988,1706200264337,-500.0,0.00054794,2]
[312761989,1706200264346,-500.0,0.00054794,120]
[312761990,1706200264355,-500.0,0.00054794,120]
[312761991,1706200264364,-500.0,0.00054794,120]
[312761992,1706200264373,-500.0,0.00054794,120]
[312761993,1706200264383,-500.0,0.00054794,120]
[312761994,1706200264392,-500.0,0.00054794,120]
[312761995,1706200264401,-2288.59,0.00054794,5]
[312761996,1706200264410,-507.7565371,0.00054794,120]
[312761997,1706200264419,-500.0,0.00054794,120]
[312761998,1706200264428,-500.0,0.00054794,120]
[312761999,1706200264437,-500.0,0.00054794,120]
[312762000,1706200264446,-500.0,0.00054794,120]
[312762001,1706200264456,-553.77,0.00054794,120]
[312762002,1706200264465,-500.0,0.00054794,2]
[312762003,1706200264474,-500.0,0.00054794,120]
[312762004,1706200264484,-500.0,0.00054794,120]
[312762005,1706200264493,-500.0,0.00054794,120]
[312762006,1706200264503,-500.0,0.00054794,120]
[312762007,1706200264512,-843.08,0.00054794,120]
[312762008,1706200264521,-151.0,0.00054794,7]
[312762009,1706200264530,-500.0,0.00054794,120]
[312762010,1706200264539,-500.0,0.00054794,120]
[312762011,1706200264548,-500.0,0.00054794,2]
[312762012,1706200264557,-505.9666974,0.00054794,120]
[312762013,1706200264566,-502.57689484,0.00054794,120]
[312762014,1706200264575,-500.0,0.00054794,120]
[312762015,1706200264585,-151.0,0.00054794,7]
[312762016,1706200264594,-3093.15,0.00054794,120]
[312762017,1706200264603,-1255.04,0.00054794,120]
[312762018,1706200264612,-500.0,0.00054794,120]
[312762019,1706200264621,-500.0,0.00054794,120]
[312762020,1706200264630,-506.0115247,0.00054794,120]
[312762021,1706200264639,-527.84,0.00054794,120]
[312762022,1706200264649,-500.0,0.00054794,120]
[312762023,1706200264657,-500.0,0.00054794,120]
[312762024,1706200264666,-513.95979329,0.00054794,120]
[312762025,1706200264675,-246.77511941,0.00054794,120]
[312762026,1706200264685,-608.46108668,0.00054794,120]
[312762027,1706200264696,-151.0,0.00054794,120]
[312762028,1706200264705,-500.0,0.00054794,120]
[312762029,1706200264714,-500.0,0.00054794,2]
[312762030,1706200264723,-500.0,0.00054794,120]
[312762031,1706200264732,-1000.0,0.00054794,7]
[312762032,1706200264741,-500.0,0.00054794,120]
[312762033,1706200264750,-151.0,0.00054794,120]
[312762034,1706200264760,-500.0,0.00054794,120]
[312762035,1706200264769,-500.0,0.00054794,120]
[312762036,1706200264778,-515.25581485,0.00054794,120]
[312762037,1706200264787,-517.44896096,0.00054794,120]
[312762038,1706200264797,-500.0,0.00054794,120]
[312762039,1706200264806,-502.94383077,0.00054794,120]
[312762040,1706200264815,-1247.79,0.00054794,120]
[312762041,1706200264824,-500.0,0.00054794,120]
[312762042,1706200264834,-173.2,0.00054794,120]
[312762043,1706200264843,-500.0,0.00054794,120]
[312762044,1706200264852,-500.0,0.00054794,120]
[312762045,1706200264862,-500.0,0.00054794,120]
[312762046,1706200264871,-500.0,0.00054794,120]
[312762047,1706200264880,-500.0,0.00054794,120]
[312762048,1706200264890,-500.0,0.00054794,2]
[312762049,1706200264899,-500.0,0.00054794,120]
[312762050,1706200264908,-501.83016564,0.00054794,120]
[312762051,1706200264918,-500.0,0.00054794,120]
[312762052,1706200264931,-151.0,0.00054794,120]
[312762053,1706200264953,-500.0,0.00054794,120]
[312762054,1706200264969,-500.0,0.00054794,120]
[312762055,1706200264987,-515.05443146,0.00054794,120]
[312762056,1706200265004,-500.0,0.00054795,120]
[312762057,1706200265022,-1346.243573,0.000548,120]
[312762058,1706200265043,-2782.0,0.000548,120]
[312762059,1706200265060,-1123.0,0.000548,30]
[312762060,1706200265080,-8000.0,0.000548,120]
[312762061,1706200265098,-1055.0,0.000548,30]
[312762062,1706200265116,-161.0,0.000548,30]
[312762063,1706200265138,-3000.0,0.000548,30]
[312762064,1706200265153,-500.0,0.000548,30]
[312762065,1706200265169,-602.78287986,0.00054807,60]
[312762066,1706200265186,-602.78287986,0.0005486,60]
[312762067,1706200265205,-153.8935686,0.00054869,60]
[312762068,1706200265219,-500.0,0.00054896,120]
[312762069,1706200265234,-200.0,0.00054987,76]
[312762070,1706200265248,-200.0,0.00054987,82]
[312762071,1706200265263,-200.0,0.00054987,88]
[312762072,1706200265277,-500.0,0.00054997,120]
[312762073,1706200265292,-50000.0,0.00055,45]
[312762074,1706200265306,-315.96771899,0.00055,4]
[312762075,1706200265321,-233.29011342,0.00055,120]
[312762076,1706200265335,-168.23786519,0.00055,4]
[312762077,1706200265349,-217.67419098,0.00055,4]
[312762078,1706200265363,-1040.59445035,0.00055,120]
[312762079,1706200265378,-12965.84887467,0.00055,60]
[312762080,1706200265393,-200.0,0.00055,120]
[312762081,1706200265407,-800.0,0.00055,120]
[312762082,1706200265421,-164.0,0.00055,120]
[312762083,1706200265435,-150.0,0.00055,30]
[312762084,1706200265451,-168.93632982,0.00055,30]
[312762085,1706200265464,-165.0,0.00055,120]
[312762086,1706200265478,-1035.66381186,0.00055,75]
[312762087,1706200265493,-267.28627626,0.00055003,120]
[312762088,1706200265507,-153.8935686,0.00055038,120]
[312762089,1706200265522,-500.0,0.00055099,120]
[312762090,1706200265536,-402.10954005,0.00055111,120]
[312762091,1706200265551,-500.0,0.000552,120]
[312762092,1706200265565,-829.066327,0.00055264,120]
[312762093,1706200265580,-154.88413823,0.00055278,120]
[312762094,1706200265596,-200.0,0.00055288,120]
[312762095,1706200265610,-202.5,0.00055293,120]
[312762096,1706200265625,-500.0,0.00055302,120]
[312762097,1706200265639,-153.38651496,0.00055319,120]
[312762098,1706200265653,-536.22650582,0.00055342,30]
[312762099,1706200265668,-500.0,0.00055342,120]
[312762100,1706200265683,-500.0,0.00055342,60]
[312762101,1706200265698,-500.0,0.00055342,120]
[312762102,1706200265711,-192.40849257,0.00055342,120]
[312762103,1706200265725,-500.0,0.00055342,120]
[312762104,1706200265740,-500.0,0.00055342,120]
[312762105,1706200265755,-500.0,0.00055342,120]
[312762106,1706200265769,-500.0,0.00055342,120]
[312762107,1706200265783,-500.0,0.00055342,120]
[312762108,1706200265798,-500.0,0.00055342,120]
[312762109,1706200265812,-500.0,0.00055342,120]
[312762110,1706200265827,-632.82,0.00055342,120]
[312762111,1706200265841,-500.0,0.00055342,120]
[312762112,1706200265856,-500.0,0.00055342,120]
[312762113,1706200265870,-500.0,0.00055342,120]
[312762114,1706200265884,-500.0,0.00055342,120]
[312762115,1706200265900,-500.0,0.00055342,120]
[312762116,1706200265915,-500.0,0.00055342,120]
[312762117,1706200265930,-500.0,0.00055342,120]
[312762118,1706200265945,-500.0,0.00055342,120]
[312762119,1706200265960,-500.0,0.00055342,120]
[312762120,1706200265976,-500.0,0.00055342,120]
[312762121,1706200265990,-500.0,0.00055342,120]
[312762122,1706200266005,-500.0,0.00055342,120]
[312762123,1706200266020,-500.0,0.00055342,120]
[312762124,1706200266036,-500.0,0.00055342,120]
[312762125,1706200266053,-500.0,0.00055342,120]
[312762126,1706200266068,-500.0,0.00055342,120]
[312762127,1706200266085,-500.0,0.00055342,120]
[312762128,1706200266098,-1000.0,0.00055342,120]
[312762129,1706200266268,-500.0,0.00055342,120]
[312762130,1706200266287,-500.0,0.00055342,120]
[312762131,1706200266297,-515.81109336,0.00055342,120]
[312762132,1706200266307,-513.03473036,0.00055342,120]
[312762133,1706200266316,-500.0,0.00055342,120]
[312762134,1706200266326,-500.0,0.00055342,120]
[312762135,1706200266335,-500.0,0.00055342,120]
[312762136,1706200266344,-500.0,0.00055342,120]
[312762137,1706200266354,-500.0,0.00055342,120]
[312762138,1706200266364,-500.0,0.00055342,120]
[312762139,1706200266373,-500.0,0.00055342,120]
[312762140,1706200266383,-500.0,0.00055342,120]
[312762141,1706200266392,-500.0,0.00055342,120]
[312762142,1706200266401,-500.0,0.00055342,120]
[312762143,1706200266411,-500.0,0.00055342,120]
[312762144,1706200266420,-500.0,0.00055342,120]
[312762145,1706200266430,-500.0,0.00055342,120]
[312762146,1706200266439,-500.0,0.00055342,120]
[312762147,1706200266451,-500.0,0.00055342,120]
[312762148,1706200266460,-500.0,0.00055342,120]
[312762149,1706200266470,-500.0,0.00055342,120]
[312762150,1706200266479,-500.0,0.00055342,120]
[312762151,1706200266489,-500.0,0.00055342,120]
[312762152,1706200266499,-500.0,0.00055342,120]
[312762153,1706200266508,-500.0,0.00055342,120]
[312762154,1706200266517,-500.0,0.00055342,120]
[312762155,1706200266527,-518.03561776,0.00055342,120]
[312762156,1706200266536,-500.0,0.00055342,120]
[312762157,1706200266546,-500.0,0.00055342,120]
[312762158,1706200266555,-386.26887726,0.00055342,120]
[312762159,1706200266564,-500.0,0.00055342,120]
[312762160,1706200266574,-500.0,0.00055342,120]
[312762161,1706200266583,-318.30199756,0.00055342,120]
[312762162,1706200266593,-500.0,0.00055342,120]
[312762163,1706200266602,-500.0,0.00055342,120]
[312762164,1706200266612,-500.0,0.00055342,120]
[312762165,1706200266621,-500.0,0.00055342,120]
[312762166,1706200266631,-500.0,0.00055342,120]
[312762167,1706200266641,-516.92394067,0.00055342,120]
[312762168,1706200266651,-500.0,0.00055342,120]
[312762169,1706200266661,-500.0,0.00055342,120]
[312762170,1706200266671,-500.0,0.00055342,120]
[312762171,1706200266680,-500.0,0.00055342,120]
[312762172,1706200266690,-500.0,0.00055342,120]
[312762173,1706200266702,-500.0,0.00055342,120]
[312762174,1706200266711,-500.0,0.00055342,120]
[312762175,1706200266721,-500.0,0.00055342,120]
[312762176,1706200266730,-500.0,0.00055342,120]
[312762177,1706200266740,-500.0,0.00055342,120]
[312762178,1706200266749,-500.0,0.00055342,120]
[312762179,1706200266759,-500.0,0.00055342,120]
[312762180,1706200266769,-500.0,0.00055342,120]
[312762181,1706200266778,-500.0,0.00055342,120]
[312762182,1706200266788,-516.24899828,0.00055342,120]
[312762183,1706200266798,-500.0,0.00055342,120]
[312762184,1706200266807,-500.0,0.00055342,120]
[312762185,1706200266817,-500.0,0.00055342,120]
[312762186,1706200266826,-500.0,0.00055342,120]
[312762187,1706200266835,-500.0,0.00055342,120]
[312762188,1706200266845,-500.0,0.00055342,120]
[312762189,1706200266855,-549.09107442,0.00055342,120]
[312762190,1706200266865,-500.0,0.00055342,120]
[312762191,1706200266874,-500.0,0.00055342,120]
[312762192,1706200266884,-500.0,0.00055342,120]
[312762193,1706200266894,-548.69530525,0.00055342,120]
[312762194,1706200266904,-500.0,0.00055342,120]
[312762195,1706200266914,-500.0,0.00055342,120]
[312762196,1706200266923,-512.49952341,0.00055342,120]
[312762197,1706200266933,-500.0,0.00055342,120]
[312762198,1706200266944,-500.0,0.00055342,60]
[312762199,1706200266953,-500.0,0.00055342,120]